lending/lending_fUSD_20240219
["ID","MTS","AMOUNT","RATE_DAILY","PERIOD"]
[314427176,1708333840637,-534.11,0.00040433,4]
[314427177,1708333840646,-534.11,0.00040433,4]
[314427178,1708333840656,-534.18349163,0.00040433,4]
[314427179,1708333840665,-291.06232236,0.00040433,3]
[314427180,1708333840675,-209.97654275,0.00040433,3]
[314427181,1708333840684,-291.06232236,0.00040433,3]
[314427182,1708333840694,-209.97654275,0.00040433,3]
[314427183,1708333840703,-291.06232236,0.00040433,3]
[314427184,1708333840712,-209.97654275,0.00040433,3]
[314427185,1708333840721,-291.06232236,0.00040433,3]
[314427186,1708333840730,-209.97654275,0.00040433,3]
[314427187,1708333840739,-151.0,0.00040433,14]
[314427188,1708333840748,-151.0,0.00040433,14]
[314427189,1708333840757,-323.727194,0.00040433,14]
[314427190,1708333840766,-323.727194,0.00040433,14]
[314427191,1708333840775,-465.1,0.00040433,14]
[314427192,1708333840784,-32461.87961605,0.00040434,2]
[314427193,1708333840794,-1000.0,0.00040434,60]
[314427194,1708333840803,-1085.0,0.00040434,120]
[314427195,1708333840812,-2357.8794,0.00040434,7]
[314427196,1708333840821,-209.03611046,0.00040434,120]
[314427197,1708333840830,-178.57211622,0.00040434,30]
[314427198,1708333840839,-117538.8218776,0.00040434,2]
[314427199,1708333840848,-2698.11330031,0.00040434,120]
[314427200,1708333840857,-8022.06964701,0.00040434,3]
[314427201,1708333840866,-870.05219542,0.00040434,120]
[314427202,1708333840875,-1138.89693226,0.00040434,120]
[314427203,1708333840885,-1372.34906709,0.00040434,60]
[314427204,1708333840895,-270.77642402,0.00040434,120]
[314427205,1708333840905,-150475.92755094,0.00040434,2]
[314427206,1708333840915,-328.1008825,0.00040434,30]
[314427207,1708333840924,-170.83981171,0.00040434,30]
[314427208,1708333840933,-312.48999945,0.00040434,120]
[314427209,1708333840942,-355.00984534,0.00040434,120]
[314427210,1708333840951,-156.52846427,0.00040434,120]
[314427211,1708333840960,-757.93323932,0.00040434,30]
[314427212,1708333840970,-219.52767301,0.00040434,2]
[314427213,1708333840979,-2946.05431458,0.00040434,120]
[314427214,1708333840988,-577.43723592,0.00040434,30]
[314427215,1708333840997,-10302.598966,0.00040434,2]
[314427216,1708333841006,-5399.32854119,0.00040434,2]
[314427217,1708333841015,-300.0,0.00040434,15]
[314427218,1708333841024,-6688.76371315,0.00040434,2]
[314427219,1708333841034,-2365841.45503645,0.00040434,10]
[314427220,1708333841042,-1418.33147098,0.00040434,2]
[314427221,1708333841051,-14578.06572,0.00040434,2]
[314427222,1708333841060,-6300.0,0.00040434,8]
[314427223,1708333841069,-1029.75374676,0.00040434,2]
[314427224,1708333841078,-323.10274224,0.00040434,120]
[314427225,1708333841087,-82001.51439948,0.00040434,2]
[314427226,1708333841096,-837.55895957,0.00040434,2]
[314427227,1708333841105,-1006.68963634,0.00040434,2]
[314427228,1708333841115,-88231.0,0.00040434,2]
[314427229,1708333841123,-4173.82863797,0.00040434,2]
[314427230,1708333841132,-202.34925018,0.00040434,120]
[314427231,1708333841142,-2489.33303685,0.00040434,30]
[314427232,1708333841152,-571.11455006,0.00040434,2]
[314427233,1708333841160,-12364.01358944,0.00040434,2]
[314427234,1708333841169,-1851.01615979,0.00040434,2]
[314427235,1708333841179,-947.13289149,0.00040434,2]
[314427236,1708333841189,-643.0,0.00040434,2]
[314427237,1708333841198,-934.57852649,0.00040434,2]
[314427238,1708333841208,-10847.54056562,0.00040434,2]
[314427239,1708333841217,-9449.8208239,0.00040434,2]
[314427240,1708333841225,-152.17925861,0.00040434,120]
[314427241,1708333841235,-552.01301583,0.00040434,2]
[314427242,1708333841244,-1770.53245667,0.00040434,2]
[314427243,1708333841253,-168.20927507,0.00040434,2]
[314427244,1708333841263,-318.03394807,0.00040434,2]
[314427245,1708333841272,-5545.56163572,0.00040434,2]
[314427246,1708333841282,-8855.27919607,0.00040434,2]
[314427247,1708333841294,-190.96944775,0.00040434,60]
[314427248,1708333841303,-310.6213948,0.00040434,120]
[314427249,1708333841312,-550.0,0.00040434,2]
[314427251,1708333841322,-1396.47684312,0.00040434,2]
[314427252,1708333841332,-971.20231783,0.00040434,2]
[314427253,1708333841341,-1006.90165067,0.00040434,2]
[314427254,1708333841351,-1518.11610208,0.00040434,2]
[314427255,1708333841361,-10319.14099677,0.00040434,2]
[314427256,1708333841370,-163291.39786424,0.00040434,2]
[314427257,1708333841379,-14415.67701222,0.00040434,2]
[314427258,1708333841389,-284.5300206,0.00040434,120]
[314427259,1708333841398,-252.51685684,0.00040434,15]
[314427260,1708333841408,-225.29780921,0.00040434,120]
[314427261,1708333841417,-952.53198172,0.00040434,120]
[314427262,1708333841426,-6000.0,0.00040434,2]
[314427263,1708333841436,-1253.29654228,0.00040434,15]
[314427264,1708333841445,-4507.74294368,0.00040434,2]
[314427265,1708333841455,-10228.70861508,0.00040434,2]
[314427266,1708333841464,-325.521468,0.00040434,119]
[314427267,1708333841474,-343.60519928,0.00040434,2]
[314427268,1708333841483,-200.0,0.00040434,2]
[314427269,1708333841493,-18155.36883105,0.00040434,2]
[314427270,1708333841502,-15355.87937239,0.00040434,4]
[314427271,1708333841513,-629.87155131,0.00040434,2]
[314427272,1708333841522,-604.13118998,0.00040434,2]
[314427273,1708333841531,-207.14837962,0.00040434,2]
[314427274,1708333841541,-147956.0860933,0.00040434,2]
[314427275,1708333841550,-279.50944117,0.00040434,120]
[314427276,1708333841559,-45552.65891926,0.00040434,2]
[314427277,1708333841570,-253.49282628,0.00040434,120]
[314427278,1708333841579,-433.21146317,0.00040434,2]
[314427279,1708333841590,-1029.00275973,0.00040434,2]
[314427280,1708333841600,-20490.85865631,0.00040434,2]
[314427281,1708333841609,-2500.0,0.00040434,2]
[314427282,1708333841618,-558.82744767,0.00040434,2]
[314427283,1708333841627,-26810.31161461,0.00040434,2]
[314427284,1708333841637,-2295.40719132,0.00040434,2]
[314427285,1708333841646,-232.21794424,0.00040434,2]
[314427286,1708333841655,-5855.62724805,0.00040434,13]
[314427287,1708333841665,-1585.03931663,0.00040434,2]
[314427288,1708333841674,-519.99440484,0.00040434,2]
[314427289,1708333841684,-196.92349624,0.00040434,30]
[314427290,1708333841693,-430230.69659374,0.00040434,2]
[314427291,1708333841703,-10125.40349438,0.00040434,2]
[314427292,1708333841712,-880.53555552,0.00040434,2]
[314427293,1708333841722,-26609.8900247,0.00040434,2]
[314427294,1708333841731,-9196.26175606,0.00040434,2]
[314427295,1708333841740,-464.68543883,0.00040434,2]
[314427296,1708333841750,-43614.01952172,0.00040434,4]
[314427297,1708333841761,-1520.80319271,0.00040434,2]
[314427298,1708333841771,-183.84887362,0.00040434,7]
[314427299,1708333841780,-58384.92709626,0.00040434,10]
[314427300,1708333841788,-14683.30379394,0.00040434,2]
[314427301,1708333841797,-21207.16634062,0.00040434,2]
[314427302,1708333841806,-229.65443807,0.00040434,2]
[314427303,1708333841815,-2055.11029045,0.00040434,2]
[314427304,1708333841824,-389.67774764,0.00040434,2]
[314427305,1708333841833,-528.35272024,0.00040434,2]
[314427306,1708333841842,-13492.60825235,0.00040434,2]
[314427307,1708333841852,-711.21686559,0.00040434,120]
[314427308,1708333841862,-152.11340764,0.00040434,60]
[314427309,1708333841871,-1905.69670694,0.00040434,120]
[314427310,1708333841880,-351.46945725,0.00040434,2]
[314427311,1708333841889,-587.54169109,0.00040434,2]
[314427312,1708333841900,-9415.08193759,0.00040434,2]
[314427313,1708333841909,-171.25732708,0.00040434,120]
[314427314,1708333841919,-153.6795462,0.00040434,30]
[314427315,1708333841927,-251.20091056,0.00040434,120]
[314427316,1708333841937,-34815.37034219,0.00040434,2]
[314427317,1708333841954,-1996.33203804,0.00040434,2]
[314427318,1708333841963,-3745.33809993,0.00040434,2]
[314427322,1708333842693,-948.69877843,0.0003918,2]
[314427323,1708333842703,-757.57883432,0.000392,2]
[314427324,1708333842713,-500.0,0.00039289,4]
[314427325,1708333842722,-42448.7097029,0.000393,2]
[314427326,1708333842731,-465.1,0.00040433,14]
[314427327,1708333842741,-702542.63155589,0.00040434,2]
[314427328,1708333842750,-40009.75117924,0.00040434,2]
[314427329,1708333842759,-1014.88178579,0.00040434,2]
[314427330,1708333842768,-476.36211,0.00040434,120]
[314427331,1708333842778,-1949.94751096,0.00040434,2]
[314427332,1708333842787,-374.19143146,0.00040434,120]
[314427333,1708333842796,-1172.69322917,0.00040434,30]
[314427334,1708333842805,-508.26055083,0.00040434,30]
[314427335,1708333842814,-207.23060306,0.00040434,7]
[314427336,1708333842823,-278.64353788,0.00040434,120]
[314427337,1708333842832,-2210.44966648,0.00040434,30]
[314427338,1708333842841,-2264.57908641,0.00040434,2]
[314427339,1708333842850,-278.07015596,0.00040434,120]
[314427340,1708333842859,-2341.37591181,0.00040434,30]
[314427341,1708333842868,-217.76217983,0.00040434,60]
[314427342,1708333842877,-6455.23998237,0.00040434,4]
[314427343,1708333842886,-1771.68761638,0.00040434,2]
[314427344,1708333842896,-1139.8799008,0.00040434,30]
[314427345,1708333842905,-321.64469045,0.00040434,30]
[314427346,1708333842915,-133283.07081309,0.00040434,2]
[314427347,1708333842923,-10834.29785806,0.00040434,2]
[314427348,1708333842933,-1002.53374007,0.00040434,7]
[314427349,1708333842941,-208.25855943,0.00040434,120]
[314427350,1708333842950,-2706.94256923,0.00040434,2]
[314427351,1708333842959,-9271.91246222,0.00040434,2]
[314427352,1708333842969,-200.18184314,0.00040434,120]
[314427353,1708333842978,-1736.356122,0.00040434,30]
[314427354,1708333842987,-6296.41210846,0.00040434,2]
[314427355,1708333842996,-1000.0,0.00040434,2]
[314427356,1708333843005,-1000.0,0.00040434,2]
[314427357,1708333843015,-1000.0,0.00040434,2]
[314427358,1708333843157,-1000.0,0.00040434,2]
[314427359,1708333843167,-1000.0,0.00040434,2]
[314427360,1708333843176,-1000.0,0.00040434,2]
[314427361,1708333843185,-1000.0,0.00040434,2]
[314427362,1708333843194,-1000.0,0.00040434,2]
[314427363,1708333843203,-1000.0,0.00040434,2]
[314427364,1708333843212,-1000.0,0.00040434,2]
[314427365,1708333843222,-1531.734105,0.00040434,2]
[314427366,1708333843231,-970.80116023,0.00040434,30]
[314427367,1708333843240,-245.716411,0.00040434,63]
[314427368,1708333843249,-207.0,0.00040434,30]
[314427369,1708333843258,-153.30983069,0.00040434,60]
[314427370,1708333843267,-153.30983072,0.00040434,60]
[314427371,1708333843277,-762.252311,0.00040434,2]
[314427372,1708333843288,-151.0,0.00040434,14]
[314427373,1708333843298,-151.0,0.00040434,14]
[314427374,1708333843307,-151.0,0.00040434,14]
[314427375,1708333843317,-151.0,0.00040434,14]
[314427376,1708333843327,-1497.716068,0.00040434,14]
[314427377,1708333843337,-1497.716068,0.00040434,14]
[314427378,1708333843346,-151.0,0.00040434,14]
[314427379,1708333843355,-522.38850044,0.00040454,2]
[314427380,1708333843366,-500.13470779,0.00040515,30]
[314427381,1708333843375,-151.0,0.00040537,7]
[314427382,1708333843384,-180.66550919,0.00040544,9]
[314427383,1708333843393,-196.556396,0.00040548,14]
[314427384,1708333843402,-165.38,0.00040564,2]
[314427385,1708333843411,-234.7168653,0.00040592,30]
[314427386,1708333843421,-870.20899944,0.00040593,2]
[314427387,1708333843430,-1000.0,0.000406,15]
[314427388,1708333843439,-1000.0,0.000406,15]
[314427389,1708333843448,-300.0,0.000406,14]
[314427390,1708333843457,-500.0,0.00040642,4]
[314427391,1708333843467,-500.0,0.00040642,4]
[314427392,1708333843476,-500.0,0.00040642,4]
[314427393,1708333843486,-500.0,0.00040642,2]
[314427394,1708333843495,-500.0,0.00040642,4]
[314427395,1708333843505,-500.0,0.00040642,4]
[314427396,1708333843514,-500.0,0.00040642,4]
[314427397,1708333843524,-284.0,0.00040643,4]
[314427398,1708333843534,-500.0,0.00040643,4]
[314427399,1708333843543,-500.0,0.00040643,2]
[314427400,1708333843552,-500.0,0.00040643,2]
[314427401,1708333843562,-150.0,0.00040667,30]
[314427402,1708333843571,-151.0,0.00040674,7]
[314427403,1708333843580,-488.60279999,0.00040691,4]
[314427404,1708333843589,-390.9071738,0.00040715,3]
[314427405,1708333843599,-694.89,0.00040733,2]
[314427406,1708333843608,-1000.0,0.000408,4]
[314427407,1708333843618,-312.0,0.0004081,2]
[314427408,1708333843626,-151.0,0.00040811,7]
[314427409,1708333843636,-7172.36812346,0.00040834,3]
[314427410,1708333843646,-150.0,0.000409,13]
[314427411,1708333843655,-1000.0,0.000409,15]
[314427412,1708333843665,-150.0,0.000409,13]
[314427413,1708333843674,-1000.0,0.00040943,2]
[314427414,1708333843683,-151.0,0.00040948,7]
[314427415,1708333843693,-291.06232236,0.00040999,3]
[314427416,1708333843702,-209.97654275,0.00040999,3]
[314427417,1708333843711,-2626.9054836,0.00041,120]
[314427418,1708333843721,-165.38,0.0004103,2]
[314427419,1708333843730,-151.0,0.00041085,7]
[314427420,1708333843739,-500.0,0.00041095,4]
[314427421,1708333843749,-500.0,0.00041095,4]
[314427422,1708333843758,-500.0,0.00041095,4]
[314427423,1708333843769,-2500.0,0.00041095,2]
[314427424,1708333843778,-1000.0,0.00041095,2]
[314427425,1708333843787,-224.61141125,0.00041095,2]
[314427426,1708333843796,-646.27433582,0.00041095,4]
[314427427,1708333843805,-260.30003262,0.00041096,2]
[314427428,1708333843815,-500.0,0.00041096,4]
[314427429,1708333843824,-500.0,0.00041096,4]
[314427430,1708333843833,-500.0,0.00041096,4]
[314427431,1708333843841,-500.0,0.00041096,4]
[314427432,1708333843850,-183.0,0.00041096,2]
[314427433,1708333843860,-500.0,0.00041096,4]
[314427434,1708333843869,-500.0,0.00041096,4]
[314427435,1708333843879,-500.0,0.00041096,4]
[314427436,1708333843888,-500.0,0.00041096,4]
[314427437,1708333843898,-500.0,0.00041096,4]
[314427438,1708333843908,-500.0,0.00041096,4]
[314427439,1708333843917,-500.0,0.00041096,4]
[314427440,1708333843926,-500.0,0.00041096,4]
[314427441,1708333843935,-252.0,0.00041096,4]
[314427442,1708333843944,-22148.55,0.00041096,5]
[314427443,1708333843953,-586.22,0.000411,5]
[314427444,1708333843963,-52677.55377614,0.000411,2]
[314427445,1708333843971,-3644.78,0.000411,2]
[314427446,1708333843981,-3644.78,0.000411,2]
[314427447,1708333843991,-3644.78,0.000411,2]
[314427448,1708333844001,-3644.78,0.000411,2]
[314427449,1708333844010,-3644.78,0.000411,2]
[314427450,1708333844020,-3644.78,0.000411,2]
[314427451,1708333844029,-3644.78,0.000411,2]
[314427452,1708333844038,-3644.78,0.000411,2]
[314427453,1708333844047,-3644.78,0.000411,2]
[314427454,1708333844057,-3644.78,0.000411,2]
[314427455,1708333844066,-158.88,0.00041105,2]
[314427456,1708333844075,-1000.0,0.00041119,2]
[314427457,1708333844084,-1000.0,0.000412,15]
[314427458,1708333844093,-180.0,0.0004133,2]
[314427459,1708333844103,-196.556396,0.0004137,14]
[314427460,1708333844112,-150.0,0.00041384,2]
[314427461,1708333844121,-5011.76,0.0004143,2]
[314427462,1708333844130,-730.83,0.00041472,2]
[314427463,1708333844139,-1250.0,0.00041491,2]
[314427464,1708333844148,-1000.0,0.000415,15]
[314427465,1708333844157,-201.97,0.00041503,2]
[314427466,1708333844166,-500.0,0.00041516,4]
[314427467,1708333844175,-522.38850044,0.00041517,3]
[314427468,1708333844185,-159.506277,0.00041564,60]
[314427469,1708333844194,-160.37213762,0.00041564,60]
[314427470,1708333844203,-160.18528488,0.000416,30]
[314427471,1708333844212,-200.0,0.000416,15]
[314427472,1708333844221,-312.0,0.0004162,2]
[314427473,1708333844230,-2972.08293337,0.00041643,120]
[314427474,1708333844239,-390.9071738,0.00041715,3]
[314427475,1708333844248,-1000.0,0.000418,15]
[314427476,1708333844257,-3015.45,0.00041902,2]
[314427477,1708333844268,-168.0,0.0004192,30]
[314427478,1708333844277,-168.0,0.0004193,30]
[314427479,1708333844287,-168.0,0.0004194,30]
[314427480,1708333844297,-150.5,0.0004195,120]
[314427481,1708333844307,-150.5,0.0004195,120]
[314427482,1708333844316,-150.5,0.0004195,120]
[314427483,1708333844327,-173.0,0.0004195,3]
[314427484,1708333844336,-150.5,0.0004196,120]
[314427485,1708333844345,-150.5,0.0004196,120]
[314427486,1708333844354,-150.5,0.0004196,120]
[314427487,1708333844363,-173.0,0.0004196,3]
[314427488,1708333844374,-241.24,0.0004197,120]
[314427489,1708333844384,-150.5,0.0004197,120]
[314427490,1708333844394,-150.5,0.0004197,120]
[314427491,1708333844403,-211.05,0.0004197,120]
[314427492,1708333844412,-150.5,0.0004197,120]
[314427493,1708333844422,-173.0,0.0004197,3]
[314427494,1708333844431,-2289.97645909,0.0004198,2]
[314427495,1708333844449,-368.86004949,0.0004198,2]
[314427496,1708333844473,-151.0,0.00040433,14]
[314427497,1708333844483,-9849.42140087,0.0004198,2]
[314427499,1708333847593,-391.51,0.0004014,15]
[314427500,1708333847602,-169.80767849,0.00040333,2]
[314427501,1708333847612,-948.69877836,0.00040759,5]
[314427502,1708333847621,-700.74537534,0.0004198,2]
[314427503,1708333847631,-500.0,0.00041999,4]
[314427504,1708333847640,-316.08405078,0.00042,2]
[314427505,1708333847649,-8723.96719466,0.00042,2]
[314427506,1708333847659,-1284.34438062,0.00042,120]
[314427507,1708333847879,-322.42127509,0.00042,120]
[314427508,1708333847888,-506.85303774,0.00042,4]
[314427517,1708334255851,550.0,0.00025,3]
[314427519,1708334491244,1462.9138211,0.0002,2]
[314427521,1708334816099,-177.94795983,0.000269,2]
[314427522,1708334816119,-155.0,0.00026999,2]
[314427523,1708334816141,-600.0,0.00027,3]
[314427524,1708334816161,-236.66,0.00027702,2]
[314427525,1708334816182,-155.34623307,0.00029,3]
[314427526,1708334825088,-177.94795982,0.00027602,2]
[314427527,1708334825110,-494.65376693,0.00029,3]
[314427528,1708334825130,-155.0,0.00030997,4]
[314427529,1708334825150,-155.0,0.00030998,4]
[314427530,1708334825170,-334.14411535,0.00030999,4]
[314427531,1708334825191,-700.0,0.00031,3]
[314427532,1708334825211,-1180.50531808,0.000329,2]
[314427533,1708334830133,-319.49468192,0.000329,2]
[314427534,1708334830152,-723.37,0.00033194,2]
[314427535,1708334830173,-162.25226517,0.00033399,2]
[314427536,1708334830192,-1744.82,0.00033399,2]
[314427537,1708334830212,-197.7098102,0.00033498,4]
[314427538,1708334830231,-150.0,0.00033499,3]
[314427539,1708334830252,-400.0,0.00033499,3]
[314427540,1708334830272,-1645.0,0.000335,2]
[314427541,1708334830291,-431.20477862,0.000335,2]
[314427560,1708335031898,-197.7098102,0.00033308,4]
[314427561,1708335031907,-154.52149132,0.00033309,2]
[314427562,1708335031917,-200.28412344,0.00033332,2]
[314427563,1708335031927,-203.22520032,0.00033398,2]
[314427564,1708335031936,-209.57640414,0.00033498,4]
[314427565,1708335031945,-191.54116487,0.00033499,4]
[314427566,1708335031955,-320.0,0.00033499,3]
[314427567,1708335031964,-150.0,0.00033499,2]
[314427568,1708335031973,-150.0,0.00033499,3]
[314427569,1708335031983,-400.0,0.00033499,3]
[314427570,1708335031992,-9723.79522138,0.000335,2]
[314427571,1708335032002,-500.0,0.00034068,2]
[314427572,1708335032011,-160.74900574,0.00034084,2]
[314427573,1708335032020,-574.43395081,0.00034184,2]
[314427574,1708335032033,-1425.56604919,0.00034184,2]
[314427575,1708335032042,-1852.42,0.00034184,2]
[314427576,1708335032051,-2819.47,0.00034198,2]
[314427577,1708335032061,-9201.41,0.00034219,2]
[314427578,1708335032069,-750.0,0.00034226,2]
[314427579,1708335032079,-2467.89,0.00034226,90]
[314427580,1708335032088,-822.86,0.00034269,2]
[314427581,1708335032097,-4869.7,0.00034269,2]
[314427582,1708335032106,-150.0,0.00034269,2]
[314427583,1708335032115,-500.0,0.00034278,2]
[314427584,1708335032125,-1000.0,0.00034308,2]
[314427585,1708335032134,-11900.0,0.00034309,2]
[314427586,1708335032143,-155.77,0.00034402,2]
[314427587,1708335032152,-2705.0,0.00034516,2]
[314427588,1708335032161,-818.094471,0.0003452,2]
[314427589,1708335032170,-5162.55,0.0003452,2]
[314427590,1708335032180,-221.4,0.00034521,2]
[314427591,1708335032189,-755.76,0.00034531,2]
[314427592,1708335032198,-1783.97,0.00034565,2]
[314427594,1708335032207,-2965.92,0.00034571,2]
[314427596,1708335032216,-15254.52,0.00034571,2]
[314427598,1708335032224,-155.77,0.00034581,2]
[314427600,1708335032233,-250.0,0.00034592,2]
[314427603,1708335032242,-250.0,0.00034615,2]
[314427606,1708335032251,-150.0,0.0003464,2]
[314427608,1708335032261,-160.74900567,0.00034642,2]
[314427610,1708335032271,-192.5,0.00034657,120]
[314427612,1708335032280,-500.0,0.00034691,2]
[314427614,1708335032289,-155.77,0.0003476,2]
[314427616,1708335032297,-1227.141707,0.00034794,2]
[314427618,1708335032306,-1636.188943,0.00034931,2]
[314427620,1708335032316,-155.77,0.0003494,2]
[314427622,1708335032325,-19244.88,0.00034959,2]
[314427623,1708335032335,-2045.236179,0.00035068,2]
[314427624,1708335032343,-250.0,0.00035112,111]
[314427625,1708335032352,-2489.91,0.00035117,2]
[314427626,1708335032361,-155.77,0.00035119,2]
[314427627,1708335032370,-4696.29,0.00035158,2]
[314427628,1708335032379,-200.0,0.00035181,2]
[314427629,1708335032388,-500.0,0.00035195,2]
[314427630,1708335032397,-160.74900567,0.00035201,2]
[314427631,1708335032405,-155.77,0.00035298,2]
[314427632,1708335032415,-23890.0,0.00035299,2]
[314427633,1708335032423,-200.0,0.00035311,2]
[314427634,1708335032432,-187.29,0.00035311,2]
[314427635,1708335032441,-10414.04,0.00035311,2]
[314427636,1708335032450,-2863.33065,0.00035342,2]
[314427637,1708335032459,-172.91,0.00035351,2]
[314427638,1708335032468,-2775.41,0.00035441,2]
[314427639,1708335032477,-723.37,0.00035458,2]
[314427640,1708335032487,-2390.95,0.00035469,2]
[314427641,1708335032495,-155.77,0.00035477,2]
[314427642,1708335032504,-181.48,0.00035505,2]
[314427643,1708335032513,-2775.41,0.00035646,2]
[314427644,1708335032522,-155.77,0.00035657,2]
[314427645,1708335032531,-565.52,0.00035663,2]
[314427646,1708335032540,-160.74900567,0.00035759,2]
[314427647,1708335032549,-221.4,0.00035798,2]
[314427648,1708335032558,-155.77,0.00035836,2]
[314427649,1708335032567,-2775.41,0.00035851,2]
[314427650,1708335032575,-249.0,0.00035974,3]
[314427651,1708335032584,-155.77,0.00036015,2]
[314427652,1708335032594,-2775.41,0.00036056,2]
[314427653,1708335032605,-21385.47,0.00036116,2]
[314427654,1708335032615,-501.6,0.00036133,2]
[314427655,1708335032623,-155.77,0.00036194,2]
[314427656,1708335032632,-2775.41,0.0003626,2]
[314427657,1708335032642,-150.1,0.00036306,2]
[314427658,1708335032651,-160.74900567,0.00036317,2]
[314427659,1708335032659,-1394.6641866,0.00036376,2]
[314427660,1708335032668,-2775.41,0.00036465,2]
[314427661,1708335032679,-187.29,0.00036488,2]
[314427662,1708335032688,-188.88,0.00036518,2]
[314427663,1708335032699,-2775.41,0.0003667,2]
[314427664,1708335032708,-2489.91,0.00036761,2]
[314427665,1708335032717,-222.0,0.00036798,2]
[314427666,1708335032727,-1322.93692186,0.00036798,2]
[314427667,1708335032736,-3272.377886,0.000368,2]
[314427668,1708335032745,-177.14,0.00036864,2]
[314427669,1708335032754,-2775.41,0.00036875,2]
[314427670,1708335032763,-160.74900567,0.00036875,2]
[314427671,1708335032773,-151.199132,0.000369,2]
[314427672,1708335032782,-385.9257,0.00036986,10]
[314427673,1708335032791,-221.4,0.00037075,2]
[314427674,1708335032800,-2775.41,0.00037079,2]
[314427675,1708335032810,-169.5,0.00037201,2]
[314427676,1708335032819,-2775.41,0.00037284,2]
[314427677,1708335032829,-160.74900567,0.00037434,2]
[314427678,1708335032838,-166.8,0.00037465,2]
[314427679,1708335032847,-158.88,0.00037475,2]
[314427680,1708335032857,-1322.93692185,0.00037552,2]
[314427681,1708335032866,-193.38,0.0003765,2]
[314427682,1708335032876,-187.29,0.00037665,2]
[314427683,1708335032885,-180.0,0.00037696,2]
[314427684,1708335032894,-723.37,0.00037722,2]
[314427685,1708335032904,-1394.66418659,0.00037814,2]
[314427686,1708335032913,-169.5,0.00037821,2]
[314427687,1708335032922,-160.74900567,0.00037992,2]
[314427688,1708335032932,-430.0,0.00038,2]
[314427689,1708335032941,-221.4,0.00038352,2]
[314427690,1708335032951,-358.88,0.00038356,15]
[314427691,1708335032961,-2489.91,0.00038405,2]
[314427692,1708335032970,-203.01830532,0.00038426,7]
[314427693,1708335032979,-1880.1992103,0.00038426,7]
[314427694,1708335032989,-478.42448188,0.00038426,7]
[314427695,1708335032998,-169.5,0.00038441,2]
[314427696,1708335033007,-2879.77212893,0.00038445,14]
[314427697,1708335033017,-151.0,0.00038546,2]
[314427698,1708335033026,-160.74900567,0.0003855,2]
[314427699,1708335033035,-822.86,0.00038553,2]
[314427700,1708335033044,-430.0,0.0003863,14]
[314427701,1708335033054,-1048.8046,0.000388,2]
[314427702,1708335033063,-187.29,0.00038842,2]
[314427703,1708335033073,-2574.38,0.000389,3]
[314427704,1708335033082,-2574.38,0.000389,3]
[314427705,1708335033091,-2574.38,0.000389,3]
[314427706,1708335033101,-2574.38,0.000389,3]
[314427707,1708335033111,-2574.38,0.000389,3]
[314427708,1708335033121,-2574.38,0.000389,3]
[314427709,1708335033130,-1971.00404833,0.000389,3]
[314427716,1708335038641,-360.43720995,0.0003015,2]
[314427717,1708335038650,-603.37595167,0.000389,3]
[314427718,1708335038658,-33.71891175,0.000389,3]
[314427719,1708335038670,-2320.54547166,0.000389,3]
[314427720,1708335038692,-220.11561659,0.000389,3]
[314427721,1708335038702,-780.62200664,0.000389,3]
[314427722,1708335038714,-1793.75799336,0.000389,3]
[314427723,1708335038723,-197.28578594,0.000389,3]
[314427724,1708335038945,-0.06163724,0.000389,3]
[314427725,1708335038957,-709.85997169,0.000389,3]
[314427726,1708335039026,-1667.17260513,0.000389,3]
[314427727,1708335039036,-2574.38,0.000389,3]
[314427728,1708335039045,-2574.38,0.000389,3]
[314427729,1708335039054,-2574.38,0.000389,3]
[314427730,1708335039064,-2574.38,0.000389,3]